Departmental Area,Entity,Payment Date,Expense Type,Expense Area,Supplier Name,Payment Reference, Invoice Distribution Amount , Description , Supplier Type , Expenditure Type 
UK Statistics Authority,Office for National Statistics,01/08/2019,EXP - Purchase Of Goods/Services - Contractors,Business Change Support,Mango Solutions,147675,"13,872.00", Information Management Services , SME , Programme Expenditure 
UK Statistics Authority,Office for National Statistics,01/08/2019,EXP - Purchase Of Goods/Services - Contractors,Business Indicators And B O P,Mango Solutions,147675,"37,245.00", Information Management Services , SME , Programme Expenditure 
UK Statistics Authority,Office for National Statistics,01/08/2019,EXP - Purchase Of Goods/Services - IT Contractual Services,Tech Delivery Data As A Platform,Mango Solutions,147675,"39,780.00", Information Management Services , SME , Programme Expenditure 
UK Statistics Authority,Office for National Statistics,01/08/2019,Travel And Subsistence,Cwt Trainline,Corporate Travel Management ,147682,"36,309.62", Corporate Travel Management , SME , Programme Expenditure 
UK Statistics Authority,Office for National Statistics,01/08/2019,EXP - Purchase Of Goods/Services - Contractors,Business Architecture,Certes Computing Ltd,147684,-512.4, Information Management Services , SME , Programme Expenditure 
UK Statistics Authority,Office for National Statistics,01/08/2019,EXP - Purchase Of Goods/Services - Contractors,Testing,Certes Computing Ltd,147684,"10,248.00", Information Management Services , SME , Programme Expenditure 
UK Statistics Authority,Office for National Statistics,01/08/2019,EXP - Purchase Of Goods/Services - Contractors,Programme Delivery,Certes Computing Ltd,147684,"12,810.00", Information Management Services , SME , Programme Expenditure 
UK Statistics Authority,Office for National Statistics,01/08/2019,EXP - Purchase Of Goods/Services - Contractors,Business Indicators And B O P,Certes Computing Ltd,147684,"10,760.45", Information Management Services , SME , Programme Expenditure 
UK Statistics Authority,Office for National Statistics,01/08/2019,EXP - Purchase Of Goods/Services - Contractors,Commercial Services,Certes Computing Ltd,147684,"12,809.52", Information Management Services , SME , Programme Expenditure 
UK Statistics Authority,Office for National Statistics,01/08/2019,EXP - Purchase Of Goods/Services - Contractors,Digital Delivery,Certes Computing Ltd,147684,"12,810.00", Information Management Services , SME , Programme Expenditure 
UK Statistics Authority,Office for National Statistics,01/08/2019,EXP - Purchase Of Goods And Services Consultants,Tech Delivery Legacy Sp,Actian Europe Limited,147686,"60,720.00", Information Management Services , SME , Programme Expenditure 
UK Statistics Authority,Office for National Statistics,01/08/2019,EXP - Purchase Of Goods And Services Consultants,Productivity Innovation Engagement And Research,National Institute of Economic and Social Research,147687,"102,970.80", Statistical Services, SME , Programme Expenditure 
UK Statistics Authority,Office for National Statistics,01/08/2019,End User Software And Hardware,It Operations,Computacenter (Uk) Limited,147689,"78,702.53", Cloud Services, Large , Programme Expenditure 
UK Statistics Authority,Office for National Statistics,01/08/2019,IT (Owned) At Cost - Additions,Tech Delivery Next Gen It And Infrastructure,CCS MEDIA LTD,147691,"44,189.09",Information Management Services, Large , Programme Expenditure 
UK Statistics Authority,Office for National Statistics,01/08/2019,"Ict Outsourcing, Maintenance And Support",Tech Delivery Next Gen It And Infrastructure,CCS MEDIA LTD,147691,"2,703.90", Information Management Services , Large , Programme Expenditure 
UK Statistics Authority,Office for National Statistics,01/08/2019,"Ict Outsourcing, Maintenance And Support",It Operations,CCS MEDIA LTD,147691,"1,295.06", Information Management Services , Large , Programme Expenditure 
UK Statistics Authority,Office for National Statistics,01/08/2019,EXP - Purchase Of Goods And Services Consultants,Consultancy Management,Bloom Procurement Services Ltd,147692,"895,480.80", Census Information Magement Service, Large , Programme Expenditure 
UK Statistics Authority,Office for National Statistics,01/08/2019,Other Goods And Services,Data Collection Service,Serco Ltd,147693,"101,680.50", Information Management Services, Large , Programme Expenditure 
UK Statistics Authority,Office for National Statistics,01/08/2019,EXP - Purchase Of Goods And Services Consultants,Tech Delivery Legacy Sp,Actian Europe Limited,147696,"31,680.00", Information Management Services , SME , Programme Expenditure 
UK Statistics Authority,Office for National Statistics,01/08/2019,Software Licences At Cost - Additions,Cdio Ungp,Amazon Web Services Inc,147697,"28,681.38", Web Hosting Services, Large , Programme Expenditure 
UK Statistics Authority,Office for National Statistics,01/08/2019,Hosting,It Operations,Amazon Web Services Inc,147697,"63,476.65", Web Hosting Services, Large , Programme Expenditure 
UK Statistics Authority,Office for National Statistics,01/08/2019,Special Payments,Data Collection Service,HH Associates Ltd,147699,"38,425.92", Census Print and Post Out Contract, SME , Programme Expenditure 
UK Statistics Authority,Office for National Statistics,01/08/2019,IT Management And Change,Digital Delivery,CTS (Cloud Technology Solutions Ltd),147703,"42,000.00", Google Cloud Services, Large , Programme Expenditure 
UK Statistics Authority,Office for National Statistics,02/08/2019,EXP - Purchase Of Goods/Services - IT Contractual Services,Dst Reapportioning,E Synergy Solutions,147709,"225,729.00", Information Management Services , SME , Programme Expenditure 
UK Statistics Authority,Office for National Statistics,02/08/2019,EXP - Purchase Of Goods/Services - IT Contractual Services,Cdio Ungp,E Synergy Solutions,147709,"29,880.00", Information Management Services , SME , Programme Expenditure 
UK Statistics Authority,Office for National Statistics,02/08/2019,EXP - Purchase Of Goods/Services - Contractor Travel,Cdio Ungp,E Synergy Solutions,147709,"7,329.05", Information Management Services , SME , Programme Expenditure 
UK Statistics Authority,Office for National Statistics,02/08/2019,EXP - Purchase Of Goods/Services - IT Contractual Services,It Operations,E Synergy Solutions,147709,"215,805.00", Information Management Services , SME , Programme Expenditure 
UK Statistics Authority,Office for National Statistics,02/08/2019,EXP - Short-Term Contract & Agency Staff - Full Cost,Census White Paper,Parity Resources Limited,147712,"2,153.78", Census Information Management Services , Large , Programme Expenditure 
UK Statistics Authority,Office for National Statistics,02/08/2019,EXP - Purchase Of Goods/Services - Contractors,Business Architecture,Parity Resources Limited,147712,"7,625.52", Information Management Services , Large , Programme Expenditure 
UK Statistics Authority,Office for National Statistics,02/08/2019,EXP - Purchase Of Goods/Services - Contractors,Programme Delivery,Parity Resources Limited,147712,"9,163.44", Information Management Services , Large , Programme Expenditure 
UK Statistics Authority,Office for National Statistics,02/08/2019,EXP - Short-Term Contract & Agency Staff - Full Cost,Business Indicators And B O P,Parity Resources Limited,147712,318.96, Information Management Services , Large , Programme Expenditure 
UK Statistics Authority,Office for National Statistics,02/08/2019,EXP - Short-Term Contract & Agency Staff - Full Cost,Productivity Innovation Engagement And Research,Parity Resources Limited,147712,"3,907.26", Information Management Services , Large , Programme Expenditure 
UK Statistics Authority,Office for National Statistics,02/08/2019,EXP - Short-Term Contract & Agency Staff - Full Cost,Strategy And Engagement,Parity Resources Limited,147712,983.46, Information Management Services , Large , Programme Expenditure 
UK Statistics Authority,Office for National Statistics,02/08/2019,EXP - Short-Term Contract & Agency Staff - Full Cost,Economic Statistics Architecture Business Change,Parity Resources Limited,147712,"2,629.38", Information Management Services , Large , Programme Expenditure 
UK Statistics Authority,Office for National Statistics,02/08/2019,EXP - Short-Term Contract & Agency Staff - Full Cost,Recruitment,Parity Resources Limited,147712,617.69, Information Management Services , Large , Programme Expenditure 
UK Statistics Authority,Office for National Statistics,02/08/2019,EXP - Purchase Of Goods/Services - Contractors,Security Advisory,Parity Resources Limited,147712,"14,353.92", Information Management Services , Large , Programme Expenditure 
UK Statistics Authority,Office for National Statistics,02/08/2019,EXP - Purchase Of Goods/Services - Contractors,Data Architecture,Parity Resources Limited,147712,"6,347.16", Information Management Services , Large , Programme Expenditure 
UK Statistics Authority,Office for National Statistics,02/08/2019,EXP - Purchase Of Goods/Services - Contractors,Tech Delivery Legacy Sp,Parity Resources Limited,147712,"10,957.68", Information Management Services , Large , Programme Expenditure 
UK Statistics Authority,Office for National Statistics,02/08/2019,EXP - Purchase Of Goods/Services - Contractors,It Applications,Parity Resources Limited,147712,"10,893.60", Information Management Services , Large , Programme Expenditure 
UK Statistics Authority,Office for National Statistics,02/08/2019,EXP - Short-Term Contract & Agency Staff - Full Cost,Office Of Chief Data And Information,Parity Resources Limited,147712,"3,714.95", Information Management Services , Large , Programme Expenditure 
UK Statistics Authority,Office for National Statistics,02/08/2019,EXP - Purchase Of Goods/Services - Contractors,Digital Delivery,Parity Resources Limited,147712,"14,353.92", Information Management Services , Large , Programme Expenditure 
UK Statistics Authority,Office for National Statistics,02/08/2019,EXP - Purchase Of Goods/Services - Contractors,Digital Delivery,Parity Resources Limited,147712,"28,036.22", Information Management Services , Large , Programme Expenditure 
UK Statistics Authority,Office for National Statistics,02/08/2019,EXP - Short-Term Contract & Agency Staff - Full Cost,Survey Processing Centre,Parity Resources Limited,147712,"1,439.44", Information Management Services , Large , Programme Expenditure 
UK Statistics Authority,Office for National Statistics,02/08/2019,EXP - Short-Term Contract & Agency Staff - Full Cost,Interviewer Management Tu,Parity Resources Limited,147712,530.56, Information Management Services , Large , Programme Expenditure 
UK Statistics Authority,Office for National Statistics,02/08/2019,Other Goods And Services,Interviewer Management Tu,Parity Resources Limited,147712,401.76, Information Management Services , Large , Programme Expenditure 
UK Statistics Authority,Office for National Statistics,02/08/2019,EXP - Purchase Of Goods/Services - Contractors,Social Survey Transformation Titchfield,Parity Resources Limited,147712,"10,578.60", Information Management Services , Large , Programme Expenditure 
UK Statistics Authority,Office for National Statistics,02/08/2019,EXP - Purchase Of Goods/Services - IT Contractual Services,Strategy And Architecture,Mosaic Island,147714,"25,680.00", Information Management Services , Large , Programme Expenditure 
UK Statistics Authority,Office for National Statistics,02/08/2019,Furniture >5K Per Item,Property Titchfield,Gresham Office Furniture Limited,147715,"94,296.77", Smart Working Furniture for Titchfield, SME , Programme Expenditure 
UK Statistics Authority,Office for National Statistics,02/08/2019,Major Works Over 25K,Property Christchurch,Bruynzeel Storage Systems Ltd,147716,"136,944.00", Major works Christchurch, Large , Programme Expenditure 
UK Statistics Authority,Office for National Statistics,02/08/2019,EXP - Purchase Of Goods And Services Consultants,Tech Delivery Srs,"Nomensa Ltd,",147717,"48,000.00", Information Management Services, Large , Programme Expenditure 
UK Statistics Authority,Office for National Statistics,02/08/2019,IT Management And Change,Tech Delivery Next Gen It And Infrastructure,Software Box Ltd,147719,"60,898.12", Information Management Services , SME , Programme Expenditure 
UK Statistics Authority,Office for National Statistics,02/08/2019,EXP - Purchase Of Goods/Services - IT Contractual Services,Digital Publishing,Methods Business & Digital Technology Ltd,147720,"47,700.00", Information Management Services , Large , Programme Expenditure 
UK Statistics Authority,Office for National Statistics,02/08/2019,EXP - Purchase Of Goods/Services - IT Contractual Services,Dst Reapportioning,Methods Business & Digital Technology Ltd,147720,"202,845.00", Information Management Services , Large , Programme Expenditure 
UK Statistics Authority,Office for National Statistics,02/08/2019,Major Works Over 25K,Property Christchurch,Paramount Office Interiors Ltd,147721,"31,671.28", Major Works Newport, SME , Programme Expenditure 
UK Statistics Authority,Office for National Statistics,02/08/2019,EXP - Purchase Of Goods And Services Consultants,Strategy And Architecture,Insight Direct,147722,"104,055.60", Information Management Services , Large , Programme Expenditure 
UK Statistics Authority,Office for National Statistics,02/08/2019,EXP - Purchase Of Goods/Services - Contractor Travel,Strategy And Architecture,Insight Direct,147722,"15,608.34", Information Management Services , Large , Programme Expenditure 
UK Statistics Authority,Office for National Statistics,05/08/2019,Telecoms,It Operations,Vodafone Corporate Ltd,147981,"42,163.70", Information Management Services , Large , Programme Expenditure 
UK Statistics Authority,Office for National Statistics,05/08/2019,Fm Contract Payments,Mitie Payments,Vinci Construction UK Limited,147985,"315,640.50", Facility Management Services, Large , Programme Expenditure 
UK Statistics Authority,Office for National Statistics,05/08/2019,IT Management And Change,It Operations,SCC,147986,"35,152.80", Information Management Services , Large , Programme Expenditure 
UK Statistics Authority,Office for National Statistics,05/08/2019,EXP - Purchase Of Goods/Services - Contractors,Business Architecture,Certes Computing Ltd,147989,"23,058.00", Information Management Services , SME , Programme Expenditure 
UK Statistics Authority,Office for National Statistics,05/08/2019,EXP - Purchase Of Goods/Services - Contractors,Testing,Certes Computing Ltd,147989,"49,344.12", Information Management Services , SME , Programme Expenditure 
UK Statistics Authority,Office for National Statistics,05/08/2019,EXP - Purchase Of Goods/Services - Contractors,Business Indicators And B O P,Certes Computing Ltd,147989,"8,102.40", Information Management Services , SME , Programme Expenditure 
UK Statistics Authority,Office for National Statistics,05/08/2019,EXP - Purchase Of Goods/Services - Contractors,Economic Statistics Architecture Business Change,Certes Computing Ltd,147989,"12,040.80", Information Management Services , SME , Programme Expenditure 
UK Statistics Authority,Office for National Statistics,05/08/2019,EXP - Purchase Of Goods/Services - Contractors,Hr Business Partners,Certes Computing Ltd,147989,"14,859.60", Information Management Services , SME , Programme Expenditure 
UK Statistics Authority,Office for National Statistics,05/08/2019,EXP - Purchase Of Goods/Services - Contractors,Security Advisory,Certes Computing Ltd,147989,"8,326.56", Information Management Services , SME , Programme Expenditure 
UK Statistics Authority,Office for National Statistics,05/08/2019,EXP - Purchase Of Goods/Services - Contractors,Data Architecture,Certes Computing Ltd,147989,"2,497.97", Information Management Services , SME , Programme Expenditure 
UK Statistics Authority,Office for National Statistics,05/08/2019,EXP - Purchase Of Goods/Services - Contractors,Digital Delivery,Certes Computing Ltd,147989,"16,653.12", Information Management Services , SME , Programme Expenditure 
UK Statistics Authority,Office for National Statistics,05/08/2019,EXP - Purchase Of Goods/Services - Contractors,Digital Delivery,Certes Computing Ltd,147989,-0.72, Information Management Services , SME , Programme Expenditure 
UK Statistics Authority,Office for National Statistics,05/08/2019,EXP - Purchase Of Goods/Services - Contractors,Digital Delivery,Certes Computing Ltd,147989,"26,260.50", Information Management Services , SME , Programme Expenditure 
UK Statistics Authority,Office for National Statistics,05/08/2019,EXP - Purchase Of Goods/Services - Contractors,Digital Delivery,Certes Computing Ltd,147989,"35,099.66", Information Management Services , SME , Programme Expenditure 
UK Statistics Authority,Office for National Statistics,05/08/2019,EXP - Purchase Of Goods/Services - Contractors,Testing,LA International,147990,"3,524.22", Information Management Services , SME , Programme Expenditure 
UK Statistics Authority,Office for National Statistics,05/08/2019,EXP - Purchase Of Goods/Services - Contractors,Business Indicators And B O P,LA International,147990,"7,176.62", Information Management Services , SME , Programme Expenditure 
UK Statistics Authority,Office for National Statistics,05/08/2019,EXP - Purchase Of Goods/Services - Contractors,Security Advisory,LA International,147990,"18,133.78", Information Management Services , SME , Programme Expenditure 
UK Statistics Authority,Office for National Statistics,05/08/2019,EXP - Purchase Of Goods/Services - Contractors,Tech Delivery Data As A Platform,LA International,147990,"6,458.94", Information Management Services , SME , Programme Expenditure 
UK Statistics Authority,Office for National Statistics,05/08/2019,EXP - Purchase Of Goods/Services - Contractors,It Applications,LA International,147990,"20,697.24", Information Management Services , SME , Programme Expenditure 
UK Statistics Authority,Office for National Statistics,05/08/2019,EXP - Purchase Of Goods/Services - Contractors,Digital Delivery,LA International,147990,"6,458.94", Information Management Services , SME , Programme Expenditure 
UK Statistics Authority,Office for National Statistics,05/08/2019,EXP - Purchase Of Goods/Services - Contractors,Digital Delivery,LA International,147990,"3,588.30", Information Management Services , SME , Programme Expenditure 
UK Statistics Authority,Office for National Statistics,05/08/2019,EXP - Purchase Of Goods/Services - Contractors,Data As A Service,LA International,147990,"6,407.70", Information Management Services , SME , Programme Expenditure 
UK Statistics Authority,Office for National Statistics,05/08/2019,End User Software And Hardware,Tech Delivery Next Gen It And Infrastructure,CCS MEDIA LTD,147993,"52,191.60", Information Management Services , Large , Programme Expenditure 
UK Statistics Authority,Office for National Statistics,05/08/2019,IT Management And Change,It Operations,CCS MEDIA LTD,147993,"23,628.00", Information Management Services , Large , Programme Expenditure 
UK Statistics Authority,Office for National Statistics,05/08/2019,Other Goods And Services,Overseas Development,Foreign & Commonwealth Office,147997,"67,787.31", Overseas Statistical Development Services, Large , Programme Expenditure 
UK Statistics Authority,Office for National Statistics,05/08/2019,EXP - Purchase Of Goods/Services - IT Contractual Services,Dst Reapportioning,QA Ltd,148002,"344,592.00", Information Management Services, Large , Programme Expenditure 
UK Statistics Authority,Office for National Statistics,05/08/2019,Capital Major Works >25K,Property Titchfield,Paramount Office Interiors Ltd,148004,"29,743.10", Major Works Titchfield, SME , Programme Expenditure 
UK Statistics Authority,Office for National Statistics,05/08/2019,Major Works Over 25K,Property Titchfield,Paramount Office Interiors Ltd,148004,"52,876.64", Major Works Titchfield, SME , Programme Expenditure 
UK Statistics Authority,Office for National Statistics,05/08/2019,Special Payments,Census Ccs Data Collection,Adecco UK Limited,148010,"175,069.20", Census Recruitment and Payroll Services, SME , Programme Expenditure 
UK Statistics Authority,Office for National Statistics,05/08/2019,EXP - Purchase Of Goods/Services - IT Contractual Services,It Applications,Cysure Limited,148013,"90,571.68", Software Support, SME , Programme Expenditure 
UK Statistics Authority,Office for National Statistics,05/08/2019,EXP - Purchase Of Goods And Services Consultants,Tech Delivery Srs,Equiniti-TopLevel,148016,"66,170.88", Information Management Services, SME , Programme Expenditure 
UK Statistics Authority,Office for National Statistics,05/08/2019,Hosting,It Operations,Equiniti-TopLevel,148016,"4,734.00", Information Management Services, SME , Programme Expenditure 
UK Statistics Authority,Office for National Statistics,06/08/2019,IT Management And Change,Digital Publishing,Swirrl IT Ltd,148220,"35,923.56", Information Management Sevices, SME , Programme Expenditure 
UK Statistics Authority,Office for National Statistics,06/08/2019,EXP - Purchase Of Goods/Services - Contractors,Gss Strategy Delivery,Concept Information Technology Ltd T/A Concept Resourcing,148223,"5,879.32", Information Management Services, Large , Programme Expenditure 
UK Statistics Authority,Office for National Statistics,06/08/2019,EXP - Short-Term Contract & Agency Staff - Full Cost,Strategy And Engagement,Concept Information Technology Ltd T/A Concept Resourcing,148223,"4,665.38", Information Management Services, Large , Programme Expenditure 
UK Statistics Authority,Office for National Statistics,06/08/2019,EXP - Short-Term Contract & Agency Staff - Full Cost,Finance,Concept Information Technology Ltd T/A Concept Resourcing,148223,"3,265.63", Information Management Services, Large , Programme Expenditure 
UK Statistics Authority,Office for National Statistics,06/08/2019,EXP - Purchase Of Goods/Services - IT Contractual Services,Digital Delivery,Concept Information Technology Ltd T/A Concept Resourcing,148223,"14,310.00", Information Management Services, Large , Programme Expenditure 
UK Statistics Authority,Office for National Statistics,06/08/2019,EXP - Short-Term Contract & Agency Staff - Full Cost,Public Sector And Households,Concept Information Technology Ltd T/A Concept Resourcing,148223,"2,574.49", Information Management Services, Large , Programme Expenditure 
UK Statistics Authority,Office for National Statistics,06/08/2019,EXP - Short-Term Contract & Agency Staff - Full Cost,Public Sector And Households,Concept Information Technology Ltd T/A Concept Resourcing,148223,"3,958.70", Information Management Services, Large , Programme Expenditure 
UK Statistics Authority,Office for National Statistics,06/08/2019,EXP - Short-Term Contract & Agency Staff - Full Cost,Survey Processing Centre,Concept Information Technology Ltd T/A Concept Resourcing,148223,"2,178.72", Information Management Services, Large , Programme Expenditure 
UK Statistics Authority,Office for National Statistics,06/08/2019,EXP - Short-Term Contract & Agency Staff - Full Cost,Interviewer Management Tu,Concept Information Technology Ltd T/A Concept Resourcing,148223,"3,136.94", Information Management Services, Large , Programme Expenditure 
UK Statistics Authority,Office for National Statistics,06/08/2019,Other Goods And Services,Interviewer Management Tu,Concept Information Technology Ltd T/A Concept Resourcing,148223,"1,116.22", Information Management Services, Large , Programme Expenditure 
UK Statistics Authority,Office for National Statistics,06/08/2019,EXP - Short-Term Contract & Agency Staff - Full Cost,Prices Division,Concept Information Technology Ltd T/A Concept Resourcing,148223,"3,550.80", Information Management Services, Large , Programme Expenditure 
UK Statistics Authority,Office for National Statistics,06/08/2019,EXP - Short-Term Contract & Agency Staff - Full Cost,Business Outputs And Developments,Concept Information Technology Ltd T/A Concept Resourcing,148223,"4,123.74", Information Management Services, Large , Programme Expenditure 
UK Statistics Authority,Office for National Statistics,06/08/2019,EXP - Short-Term Contract & Agency Staff - Full Cost,Labour Market,Concept Information Technology Ltd T/A Concept Resourcing,148223,"4,747.78", Information Management Services, Large , Programme Expenditure 
UK Statistics Authority,Office for National Statistics,06/08/2019,Travel And Subsistence,Cwt Trainline,Calder World of Travel,148228,"37,894.66", Travel and Accommodation Booking Service , SME , Programme Expenditure 
UK Statistics Authority,Office for National Statistics,06/08/2019,Non IT Maintenance And Hire,UKSA,Scotland Office,148230,"56,701.85", Office Space Rent , Large , Programme Expenditure 
UK Statistics Authority,Office for National Statistics,06/08/2019,EXP - Purchase Of Goods/Services - Contractors,Testing,Parity Resources Limited,148234,"13,392.72", Information Management Services , Large , Programme Expenditure 
UK Statistics Authority,Office for National Statistics,06/08/2019,EXP - Purchase Of Goods/Services - Contractors,Programme Other,Parity Resources Limited,148234,"14,097.60", Information Management Services , Large , Programme Expenditure 
UK Statistics Authority,Office for National Statistics,06/08/2019,EXP - Purchase Of Goods/Services - Contractors,Programme Other,Parity Resources Limited,148234,603.82, Information Management Services , Large , Programme Expenditure 
UK Statistics Authority,Office for National Statistics,06/08/2019,EXP - Purchase Of Goods/Services - Contractors,Digital Publishing,Parity Resources Limited,148234,"14,353.92", Information Management Services , Large , Programme Expenditure 
UK Statistics Authority,Office for National Statistics,06/08/2019,EXP - Purchase Of Goods/Services - Contractors,Digital Publishing,Parity Resources Limited,148234,"6,920.64", Information Management Services , Large , Programme Expenditure 
UK Statistics Authority,Office for National Statistics,06/08/2019,EXP - Purchase Of Goods/Services - Contractors,Business Indicators And B O P,Parity Resources Limited,148234,"8,971.20", Information Management Services , Large , Programme Expenditure 
UK Statistics Authority,Office for National Statistics,06/08/2019,EXP - Purchase Of Goods/Services - Contractors,Productivity Innovation Engagement And Research,Parity Resources Limited,148234,"12,488.93", Information Management Services , Large , Programme Expenditure 
UK Statistics Authority,Office for National Statistics,06/08/2019,EXP - Short-Term Contract & Agency Staff - Full Cost,Strategy And Engagement,Parity Resources Limited,148234,"2,950.38", Information Management Services , Large , Programme Expenditure 
UK Statistics Authority,Office for National Statistics,06/08/2019,EXP - Short-Term Contract & Agency Staff - Full Cost,Ask Business Services,Parity Resources Limited,148234,"2,088.16", Information Management Services , Large , Programme Expenditure 
UK Statistics Authority,Office for National Statistics,06/08/2019,EXP - Short-Term Contract & Agency Staff - Full Cost,Health Analysis And Life Events,Parity Resources Limited,148234,"2,429.57", Information Management Services , Large , Programme Expenditure 
UK Statistics Authority,Office for National Statistics,06/08/2019,EXP - Purchase Of Goods/Services - IT Contractual Services,Strategy And Architecture,Parity Resources Limited,148234,"14,400.00", Information Management Services , Large , Programme Expenditure 
UK Statistics Authority,Office for National Statistics,06/08/2019,EXP - Purchase Of Goods/Services - Contractors,It Applications,Parity Resources Limited,148234,"10,252.80", Information Management Services , Large , Programme Expenditure 
UK Statistics Authority,Office for National Statistics,06/08/2019,EXP - Purchase Of Goods/Services - Contractors,It Applications,Parity Resources Limited,148234,"18,634.80", Information Management Services , Large , Programme Expenditure 
UK Statistics Authority,Office for National Statistics,06/08/2019,EXP - Short-Term Contract & Agency Staff - Full Cost,Office Of Chief Data And Information,Parity Resources Limited,148234,"3,726.10", Information Management Services , Large , Programme Expenditure 
UK Statistics Authority,Office for National Statistics,06/08/2019,EXP - Purchase Of Goods/Services - Contractors,Digital Delivery,Parity Resources Limited,148234,"13,392.72", Information Management Services , Large , Programme Expenditure 
UK Statistics Authority,Office for National Statistics,06/08/2019,EXP - Purchase Of Goods/Services - Contractors,Digital Delivery,Parity Resources Limited,148234,"14,353.92", Information Management Services , Large , Programme Expenditure 
UK Statistics Authority,Office for National Statistics,06/08/2019,EXP - Purchase Of Goods/Services - Contractors,Digital Delivery,Parity Resources Limited,148234,"9,804.24", Information Management Services , Large , Programme Expenditure 
UK Statistics Authority,Office for National Statistics,06/08/2019,EXP - Purchase Of Goods/Services - IT Contractual Services,Digital Delivery,Parity Resources Limited,148234,"11,602.94", Information Management Services , Large , Programme Expenditure 
UK Statistics Authority,Office for National Statistics,06/08/2019,EXP - Short-Term Contract & Agency Staff - Full Cost,Data Science Campus,Parity Resources Limited,148234,"4,903.13", Information Management Services , Large , Programme Expenditure 
UK Statistics Authority,Office for National Statistics,06/08/2019,EXP - Short-Term Contract & Agency Staff - Full Cost,Survey Processing Centre,Parity Resources Limited,148234,"3,306.82", Information Management Services , Large , Programme Expenditure 
UK Statistics Authority,Office for National Statistics,06/08/2019,EXP - Short-Term Contract & Agency Staff - Full Cost,Interviewer Management Tu,Parity Resources Limited,148234,"1,790.10", Information Management Services , Large , Programme Expenditure 
UK Statistics Authority,Office for National Statistics,06/08/2019,Other Goods And Services,Interviewer Management Tu,Parity Resources Limited,148234,"2,455.92", Information Management Services , Large , Programme Expenditure 
UK Statistics Authority,Office for National Statistics,06/08/2019,EXP - Purchase Of Goods/Services - IT Contractual Services,Tech Delivery Srs,"Nomensa Ltd,",148242,"53,970.00", Information Management Services, SME , Programme Expenditure 
UK Statistics Authority,Office for National Statistics,06/08/2019,Training & Development,Security Operations,Hut Six Security Limited,148243,"70,680.00", Security Training Services, Large , Programme Expenditure 
UK Statistics Authority,Office for National Statistics,07/08/2019,EXP - Purchase Of Goods And Services Consultants,Consultancy Management,Deloitte,148245,"70,636.80", Information Management Services , Large , Programme Expenditure 
UK Statistics Authority,Office for National Statistics,07/08/2019,"Ict Outsourcing, Maintenance And Support",It Operations,CTS (Cloud Technology Solutions Ltd),148250,1.25, Google Cloud Services, Large , Programme Expenditure 
UK Statistics Authority,Office for National Statistics,07/08/2019,"Ict Outsourcing, Maintenance And Support",It Operations,CTS (Cloud Technology Solutions Ltd),148250,147.72, Google Cloud Services, Large , Programme Expenditure 
UK Statistics Authority,Office for National Statistics,07/08/2019,"Ict Outsourcing, Maintenance And Support",It Operations,CTS (Cloud Technology Solutions Ltd),148250,"26,345.70", Google Cloud Services, Large , Programme Expenditure 
UK Statistics Authority,Office for National Statistics,07/08/2019,Travel And Subsistence,Cwt Trainline,Corporate Travel Management ,148257,"41,105.41", Travel and Accommodation Booking Service , SME , Programme Expenditure 
UK Statistics Authority,Office for National Statistics,08/08/2019,EXP - Purchase Of Goods/Services - Contractors,Programme Delivery,LA International,148656,"5,766.98", Information Management Services , SME , Programme Expenditure 
UK Statistics Authority,Office for National Statistics,08/08/2019,EXP - Purchase Of Goods/Services - Contractors,Digital Publishing,LA International,148656,"21,145.32", Information Management Services , SME , Programme Expenditure 
UK Statistics Authority,Office for National Statistics,08/08/2019,EXP - Purchase Of Goods And Services Consultants,Consultancy Management,Deloitte,148658,"60,537.60", Information Management Services , Large , Programme Expenditure 
UK Statistics Authority,Office for National Statistics,08/08/2019,Other Goods And Services,Senior Management Team Design,Bridewell Consulting Limited,148663,"137,724.00", Security and Governance Review, SME , Programme Expenditure 
UK Statistics Authority,Office for National Statistics,08/08/2019,Surveys,Prices Division,Kantar UK Ltd,148664,"193,889.20", Statistical Services, Large , Programme Expenditure 
UK Statistics Authority,Office for National Statistics,08/08/2019,EXP - Purchase Of Goods/Services - Other Ict Costs Software,Prices Division,Kantar UK Ltd,148664,"16,800.00", Statistical Services, Large , Programme Expenditure 
UK Statistics Authority,Office for National Statistics,09/08/2019,Travel And Subsistence,Cwt Trainline,Corporate Travel Management ,148876,"49,609.31", Travel and Accommodation Booking Service , SME , Programme Expenditure 
UK Statistics Authority,Office for National Statistics,09/08/2019,Telecoms,It Operations,CenturyLink Communications UK Ltd,148882,"30,388.50", Information Management Services , Large , Programme Expenditure 
UK Statistics Authority,Office for National Statistics,09/08/2019,Stationery,Lodgecard,Royal Bank of Scotland,148885,"8,882.01", Multiple Procurement Card Stationery Purchases  , Large , Programme Expenditure 
UK Statistics Authority,Office for National Statistics,09/08/2019,Other Goods And Services,GPC,Royal Bank of Scotland,148885,"73,478.67", Multiple Procurement Card Purchases  , Large , Programme Expenditure 
UK Statistics Authority,Office for National Statistics,09/08/2019,Marketing & Media,Social Survey Transformation Newport,APS Group,148888,"1,092.00", Information Management Services , Large , Programme Expenditure 
UK Statistics Authority,Office for National Statistics,09/08/2019,Other Goods And Services,Social Survey Transformation Newport,APS Group,148888,"26,828.04", Information Management Services , Large , Programme Expenditure 
UK Statistics Authority,Office for National Statistics,12/08/2019,Surveys,Business Outputs And Developments,IFF Research,148912,"178,120.80", Statisical Services, Large , Programme Expenditure 
UK Statistics Authority,Office for National Statistics,12/08/2019,Other Goods And Services,Data Collection Service,Serco Ltd,148913,"101,680.50", Information Management Services, Large , Programme Expenditure 
UK Statistics Authority,Office for National Statistics,13/08/2019,Telecoms,It Operations,Bt Global Services,149265,"26,423.27", BT Cloud Services, Large , Programme Expenditure 
UK Statistics Authority,Office for National Statistics,13/08/2019,EXP - Purchase Of Goods/Services - Contractors,Programme Delivery,Certes Computing Ltd,149273,"12,810.00", Information Management Services , SME , Programme Expenditure 
UK Statistics Authority,Office for National Statistics,13/08/2019,EXP - Purchase Of Goods/Services - Contractors,Economic Statistics Architecture Business Change,Certes Computing Ltd,149273,"12,040.80", Information Management Services , SME , Programme Expenditure 
UK Statistics Authority,Office for National Statistics,13/08/2019,EXP - Purchase Of Goods/Services - Contractors,Data Architecture,Certes Computing Ltd,149273,"15,820.46", Information Management Services , SME , Programme Expenditure 
UK Statistics Authority,Office for National Statistics,13/08/2019,EXP - Purchase Of Goods/Services - Contractors,Digital Delivery,Certes Computing Ltd,149273,"10,824.06", Information Management Services , SME , Programme Expenditure 
UK Statistics Authority,Office for National Statistics,13/08/2019,EXP - Purchase Of Goods/Services - Contractors,Digital Delivery,Certes Computing Ltd,149273,"15,115.92", Information Management Services , SME , Programme Expenditure 
UK Statistics Authority,Office for National Statistics,13/08/2019,EXP - Purchase Of Goods/Services - Contractors,Programme Delivery,LA International,149274,"6,407.76", Information Management Services , SME , Programme Expenditure 
UK Statistics Authority,Office for National Statistics,13/08/2019,EXP - Purchase Of Goods/Services - Contractors,Digital Delivery,LA International,149274,"26,015.44", Information Management Services , SME , Programme Expenditure 
UK Statistics Authority,Office for National Statistics,13/08/2019,EXP - Purchase Of Goods/Services - Contractor Travel,Digital Delivery,LA International,149274,143.28, Information Management Services , SME , Programme Expenditure 
UK Statistics Authority,Office for National Statistics,14/08/2019,Travel And Subsistence,Cwt Trainline,Corporate Travel Management ,149287,"61,225.36",Corporate Travel Management , SME , Programme Expenditure 
UK Statistics Authority,Office for National Statistics,14/08/2019,EXP - Purchase Of Goods/Services - Contractors,Business Architecture,Parity Resources Limited,149291,"18,740.42", Information Management Services , Large , Programme Expenditure 
UK Statistics Authority,Office for National Statistics,14/08/2019,EXP - Purchase Of Goods/Services - Contractors,Programme Other,Parity Resources Limited,149291,"7,048.80", Information Management Services , Large , Programme Expenditure 
UK Statistics Authority,Office for National Statistics,14/08/2019,EXP - Purchase Of Goods/Services - Contractors,Programme Other,Parity Resources Limited,149291,311.4, Information Management Services , Large , Programme Expenditure 
UK Statistics Authority,Office for National Statistics,14/08/2019,EXP - Purchase Of Goods/Services - Contractors,Productivity Innovation Engagement And Research,Parity Resources Limited,149291,"1,454.39", Information Management Services , Large , Programme Expenditure 
UK Statistics Authority,Office for National Statistics,14/08/2019,EXP - Short-Term Contract & Agency Staff - Full Cost,Strategy And Engagement,Parity Resources Limited,149291,983.46, Information Management Services , Large , Programme Expenditure 
UK Statistics Authority,Office for National Statistics,14/08/2019,EXP - Short-Term Contract & Agency Staff - Full Cost,Ask Business Services,Parity Resources Limited,149291,719.72, Information Management Services , Large , Programme Expenditure 
UK Statistics Authority,Office for National Statistics,14/08/2019,EXP - Purchase Of Goods/Services - Contractors,Tech Delivery Legacy Sp,Parity Resources Limited,149291,"6,632.28", Information Management Services , Large , Programme Expenditure 
UK Statistics Authority,Office for National Statistics,14/08/2019,EXP - Purchase Of Goods/Services - Contractors,It Applications,Parity Resources Limited,149291,"35,372.28", Information Management Services , Large , Programme Expenditure 
UK Statistics Authority,Office for National Statistics,14/08/2019,EXP - Short-Term Contract & Agency Staff - Full Cost,Office Of Chief Data And Information,Parity Resources Limited,149291,"2,212.84", Information Management Services , Large , Programme Expenditure 
UK Statistics Authority,Office for National Statistics,14/08/2019,EXP - Purchase Of Goods/Services - Contractors,Digital Delivery,Parity Resources Limited,149291,"27,272.45", Information Management Services , Large , Programme Expenditure 
UK Statistics Authority,Office for National Statistics,14/08/2019,EXP - Purchase Of Goods/Services - Contractors,Digital Delivery,Parity Resources Limited,149291,"3,588.48", Information Management Services , Large , Programme Expenditure 
UK Statistics Authority,Office for National Statistics,14/08/2019,EXP - Purchase Of Goods/Services - Contractors,Digital Delivery,Parity Resources Limited,149291,"21,205.44", Information Management Services , Large , Programme Expenditure 
UK Statistics Authority,Office for National Statistics,14/08/2019,EXP - Purchase Of Goods/Services - Contractors,Digital Delivery,Parity Resources Limited,149291,"10,348.92", Information Management Services , Large , Programme Expenditure 
UK Statistics Authority,Office for National Statistics,14/08/2019,EXP - Short-Term Contract & Agency Staff - Full Cost,Interviewer Management Tu,Parity Resources Limited,149291,676.36, Information Management Services , Large , Programme Expenditure 
UK Statistics Authority,Office for National Statistics,14/08/2019,Other Goods And Services,Interviewer Management Tu,Parity Resources Limited,149291,"1,391.58", Information Management Services , Large , Programme Expenditure 
UK Statistics Authority,Office for National Statistics,14/08/2019,Hosting,It Operations,Amazon Web Services Inc,149294,"70,937.53", Web Hosting Services, Large , Programme Expenditure 
UK Statistics Authority,Office for National Statistics,15/08/2019,EXP - Short-Term Contract & Agency Staff - Full Cost,Business Change Support,Concept Information Technology Ltd T/A Concept Resourcing,149579,"3,680.25", Information Management Services, Large , Programme Expenditure 
UK Statistics Authority,Office for National Statistics,15/08/2019,EXP - Short-Term Contract & Agency Staff - Full Cost,Business Change Support,Concept Information Technology Ltd T/A Concept Resourcing,149579,"7,538.12", Information Management Services, Large , Programme Expenditure 
UK Statistics Authority,Office for National Statistics,15/08/2019,EXP - Short-Term Contract & Agency Staff - Full Cost,Business Change Support,Concept Information Technology Ltd T/A Concept Resourcing,149579,"3,851.71", Information Management Services, Large , Programme Expenditure 
UK Statistics Authority,Office for National Statistics,15/08/2019,EXP - Short-Term Contract & Agency Staff - Full Cost,Business Change Support,Concept Information Technology Ltd T/A Concept Resourcing,149579,"10,231.20", Information Management Services, Large , Programme Expenditure 
UK Statistics Authority,Office for National Statistics,15/08/2019,EXP - Purchase Of Goods/Services - Contractors,Business Change Support,Concept Information Technology Ltd T/A Concept Resourcing,149579,"1,591.78", Information Management Services, Large , Programme Expenditure 
UK Statistics Authority,Office for National Statistics,15/08/2019,EXP - Short-Term Contract & Agency Staff - Full Cost,Business Indicators And B O P,Concept Information Technology Ltd T/A Concept Resourcing,149579,"3,562.03", Information Management Services, Large , Programme Expenditure 
UK Statistics Authority,Office for National Statistics,15/08/2019,EXP - Short-Term Contract & Agency Staff - Full Cost,Economic Analysis,Concept Information Technology Ltd T/A Concept Resourcing,149579,"4,948.38", Information Management Services, Large , Programme Expenditure 
UK Statistics Authority,Office for National Statistics,15/08/2019,Training & Development,Office Of Chief Data And Information,Armakuni Ltd,149607,"46,556.10", Training , SME , Programme Expenditure 
UK Statistics Authority,Office for National Statistics,16/08/2019,EXP - Short-Term Contract & Agency Staff - Full Cost,Beyond 2021 Research And Design,Concept Information Technology Ltd T/A Concept Resourcing,149617,"4,899.98", Information Management Services, Large , Programme Expenditure 
UK Statistics Authority,Office for National Statistics,16/08/2019,EXP - Short-Term Contract & Agency Staff - Full Cost,Beyond 2021 Research And Design,Concept Information Technology Ltd T/A Concept Resourcing,149617,"3,674.90", Information Management Services, Large , Programme Expenditure 
UK Statistics Authority,Office for National Statistics,16/08/2019,EXP - Short-Term Contract & Agency Staff - Full Cost,Business Change Support,Concept Information Technology Ltd T/A Concept Resourcing,149617,"3,865.42", Information Management Services, Large , Programme Expenditure 
UK Statistics Authority,Office for National Statistics,16/08/2019,EXP - Short-Term Contract & Agency Staff - Full Cost,Business Change Support,Concept Information Technology Ltd T/A Concept Resourcing,149617,"4,791.71", Information Management Services, Large , Programme Expenditure 
UK Statistics Authority,Office for National Statistics,16/08/2019,EXP - Purchase Of Goods/Services - Contractors,Business Change Support,Concept Information Technology Ltd T/A Concept Resourcing,149617,"6,152.05", Information Management Services, Large , Programme Expenditure 
UK Statistics Authority,Office for National Statistics,16/08/2019,EXP - Purchase Of Goods/Services - Contractors,Business Change Support,Concept Information Technology Ltd T/A Concept Resourcing,149617,"3,758.10", Information Management Services, Large , Programme Expenditure 
UK Statistics Authority,Office for National Statistics,16/08/2019,EXP - Purchase Of Goods/Services - Contractors,Business Change Support,Concept Information Technology Ltd T/A Concept Resourcing,149617,"2,082.37", Information Management Services, Large , Programme Expenditure 
UK Statistics Authority,Office for National Statistics,16/08/2019,EXP - Purchase Of Goods/Services - Contractors,Business Change Support,Concept Information Technology Ltd T/A Concept Resourcing,149617,"3,370.25", Information Management Services, Large , Programme Expenditure 
UK Statistics Authority,Office for National Statistics,16/08/2019,EXP - Short-Term Contract & Agency Staff - Full Cost,N A Coordination,Concept Information Technology Ltd T/A Concept Resourcing,149617,"7,756.92", Information Management Services, Large , Programme Expenditure 
UK Statistics Authority,Office for National Statistics,16/08/2019,EXP - Purchase Of Goods/Services - Contractors,N A Coordination,Concept Information Technology Ltd T/A Concept Resourcing,149617,0.01, Information Management Services, Large , Programme Expenditure 
UK Statistics Authority,Office for National Statistics,16/08/2019,EXP - Short-Term Contract & Agency Staff - Full Cost,Business Indicators And B O P,Concept Information Technology Ltd T/A Concept Resourcing,149617,"8,169.12", Information Management Services, Large , Programme Expenditure 
UK Statistics Authority,Office for National Statistics,16/08/2019,EXP - Purchase Of Goods/Services - Contractors,Business Indicators And B O P,Concept Information Technology Ltd T/A Concept Resourcing,149617,"2,969.03", Information Management Services, Large , Programme Expenditure 
UK Statistics Authority,Office for National Statistics,16/08/2019,EXP - Purchase Of Goods/Services - Contractors,Business Indicators And B O P,Concept Information Technology Ltd T/A Concept Resourcing,149617,"3,738.04", Information Management Services, Large , Programme Expenditure 
UK Statistics Authority,Office for National Statistics,16/08/2019,EXP - Purchase Of Goods/Services - Contractors,Productivity Innovation Engagement And Research,Concept Information Technology Ltd T/A Concept Resourcing,149617,0.01, Information Management Services, Large , Programme Expenditure 
UK Statistics Authority,Office for National Statistics,16/08/2019,EXP - Purchase Of Goods/Services - Contractors,Business Statistics Transformation,Concept Information Technology Ltd T/A Concept Resourcing,149617,"3,882.74", Information Management Services, Large , Programme Expenditure 
UK Statistics Authority,Office for National Statistics,16/08/2019,EXP - Purchase Of Goods/Services - Contractors,Business Indicators And B O P,Certes Computing Ltd,149622,"27,541.68", Information Management Services , SME , Programme Expenditure 
UK Statistics Authority,Office for National Statistics,19/08/2019,EXP - Short-Term Contract & Agency Staff - Full Cost,Beyond 2021 Research And Design,Concept Information Technology Ltd T/A Concept Resourcing,149835,989.68, Information Management Services, Large , Programme Expenditure 
UK Statistics Authority,Office for National Statistics,19/08/2019,EXP - Short-Term Contract & Agency Staff - Full Cost,Business Change Support,Concept Information Technology Ltd T/A Concept Resourcing,149835,"4,602.01", Information Management Services, Large , Programme Expenditure 
UK Statistics Authority,Office for National Statistics,19/08/2019,EXP - Short-Term Contract & Agency Staff - Full Cost,Business Change Support,Concept Information Technology Ltd T/A Concept Resourcing,149835,"3,981.17", Information Management Services, Large , Programme Expenditure 
UK Statistics Authority,Office for National Statistics,19/08/2019,EXP - Purchase Of Goods/Services - Contractors,Business Change Support,Concept Information Technology Ltd T/A Concept Resourcing,149835,"7,810.15", Information Management Services, Large , Programme Expenditure 
UK Statistics Authority,Office for National Statistics,19/08/2019,EXP - Purchase Of Goods/Services - Contractors,Business Indicators And B O P,Concept Information Technology Ltd T/A Concept Resourcing,149835,"3,958.70", Information Management Services, Large , Programme Expenditure 
UK Statistics Authority,Office for National Statistics,19/08/2019,Other Goods And Services,Interviewer Management Tu,Concept Information Technology Ltd T/A Concept Resourcing,149835,"1,490.81", Information Management Services, Large , Programme Expenditure 
UK Statistics Authority,Office for National Statistics,19/08/2019,EXP - Short-Term Contract & Agency Staff - Full Cost,Prices Division,Concept Information Technology Ltd T/A Concept Resourcing,149835,"4,598.52", Information Management Services, Large , Programme Expenditure 
UK Statistics Authority,Office for National Statistics,19/08/2019,EXP - Purchase Of Goods/Services - IT Contractual Services,Strategy And Architecture,Medley Business Solutions Ltd,149841,"39,208.65", Information Management Services , Large , Programme Expenditure 
UK Statistics Authority,Office for National Statistics,19/08/2019,EXP - Purchase Of Goods/Services - Contractor Travel,Strategy And Architecture,Medley Business Solutions Ltd,149841,680.27, Information Management Services , Large , Programme Expenditure 
UK Statistics Authority,Office for National Statistics,19/08/2019,EXP - Purchase Of Goods/Services - Contractors,Business Architecture,LA International,149843,216.72, Information Management Services , SME , Programme Expenditure 
UK Statistics Authority,Office for National Statistics,19/08/2019,EXP - Purchase Of Goods/Services - Contractors,Testing,LA International,149843,"11,277.50", Information Management Services , SME , Programme Expenditure 
UK Statistics Authority,Office for National Statistics,19/08/2019,EXP - Purchase Of Goods/Services - Contractors,Programme Delivery,LA International,149843,"2,563.10", Information Management Services , SME , Programme Expenditure 
UK Statistics Authority,Office for National Statistics,19/08/2019,EXP - Purchase Of Goods/Services - Contractors,Digital Publishing,LA International,149843,"3,524.22", Information Management Services , SME , Programme Expenditure 
UK Statistics Authority,Office for National Statistics,19/08/2019,EXP - Purchase Of Goods/Services - Contractors,Business Indicators And B O P,LA International,149843,"3,588.31", Information Management Services , SME , Programme Expenditure 
UK Statistics Authority,Office for National Statistics,19/08/2019,EXP - Purchase Of Goods/Services - Contractors,Security Advisory,LA International,149843,"7,368.84", Information Management Services , SME , Programme Expenditure 
UK Statistics Authority,Office for National Statistics,19/08/2019,EXP - Purchase Of Goods/Services - Contractors,Data Architecture,LA International,149843,"7,689.24", Information Management Services , SME , Programme Expenditure 
UK Statistics Authority,Office for National Statistics,19/08/2019,EXP - Purchase Of Goods/Services - Contractors,Data Architecture,LA International,149843,"7,497.00", Information Management Services , SME , Programme Expenditure 
UK Statistics Authority,Office for National Statistics,19/08/2019,EXP - Purchase Of Goods/Services - Contractors,Tech Delivery Srs,LA International,149843,"5,741.28", Information Management Services , SME , Programme Expenditure 
UK Statistics Authority,Office for National Statistics,19/08/2019,EXP - Purchase Of Goods/Services - Contractors,Tech Delivery Data As A Platform,LA International,149843,"6,458.94", Information Management Services , SME , Programme Expenditure 
UK Statistics Authority,Office for National Statistics,19/08/2019,EXP - Purchase Of Goods/Services - Contractors,It Applications,LA International,149843,"8,022.70", Information Management Services , SME , Programme Expenditure 
UK Statistics Authority,Office for National Statistics,19/08/2019,EXP - Purchase Of Goods/Services - Contractors,Digital Delivery,LA International,149843,"8,970.84", Information Management Services , SME , Programme Expenditure 
UK Statistics Authority,Office for National Statistics,19/08/2019,EXP - Purchase Of Goods/Services - Contractors,Data As A Service,LA International,149843,"5,126.16", Information Management Services , SME , Programme Expenditure 
UK Statistics Authority,Office for National Statistics,20/08/2019,"Ict Outsourcing, Maintenance And Support",It Operations,Crown Hosting Data Centres Limited,150042,47.18, Crown Hosted Data, SME , Programme Expenditure 
UK Statistics Authority,Office for National Statistics,20/08/2019,IT Management And Change,It Operations,Crown Hosting Data Centres Limited,150042,"47,950.91", Crown Hosted Data, SME , Programme Expenditure 
UK Statistics Authority,Office for National Statistics,20/08/2019,IT Management And Change,Office Of Chief Data And Information,Crown Hosting Data Centres Limited,150042,"9,109.89", Crown Hosted Data, SME , Programme Expenditure 
UK Statistics Authority,Office for National Statistics,20/08/2019,EXP - Short-Term Contract & Agency Staff - Full Cost,Business Change Support,Concept Information Technology Ltd T/A Concept Resourcing,150044,"3,958.70", Information Management Services, Large , Programme Expenditure 
UK Statistics Authority,Office for National Statistics,20/08/2019,EXP - Short-Term Contract & Agency Staff - Full Cost,Business Change Support,Concept Information Technology Ltd T/A Concept Resourcing,150044,"3,365.96", Information Management Services, Large , Programme Expenditure 
UK Statistics Authority,Office for National Statistics,20/08/2019,EXP - Short-Term Contract & Agency Staff - Full Cost,Business Change Support,Concept Information Technology Ltd T/A Concept Resourcing,150044,"5,898.48", Information Management Services, Large , Programme Expenditure 
UK Statistics Authority,Office for National Statistics,20/08/2019,EXP - Purchase Of Goods/Services - Contractors,Business Change Support,Concept Information Technology Ltd T/A Concept Resourcing,150044,989.68, Information Management Services, Large , Programme Expenditure 
UK Statistics Authority,Office for National Statistics,20/08/2019,EXP - Purchase Of Goods/Services - Contractors,Business Change Support,Concept Information Technology Ltd T/A Concept Resourcing,150044,"3,838.34", Information Management Services, Large , Programme Expenditure 
UK Statistics Authority,Office for National Statistics,20/08/2019,EXP - Short-Term Contract & Agency Staff - Full Cost,Business Indicators And B O P,Concept Information Technology Ltd T/A Concept Resourcing,150044,"1,979.35", Information Management Services, Large , Programme Expenditure 
UK Statistics Authority,Office for National Statistics,20/08/2019,EXP - Short-Term Contract & Agency Staff - Full Cost,Business Indicators And B O P,Concept Information Technology Ltd T/A Concept Resourcing,150044,"4,774.53", Information Management Services, Large , Programme Expenditure 
UK Statistics Authority,Office for National Statistics,20/08/2019,EXP - Short-Term Contract & Agency Staff - Full Cost,Business Indicators And B O P,Concept Information Technology Ltd T/A Concept Resourcing,150044,"1,796.66", Information Management Services, Large , Programme Expenditure 
UK Statistics Authority,Office for National Statistics,20/08/2019,EXP - Purchase Of Goods/Services - Contractors,Census & Soc Methodology Dd,Concept Information Technology Ltd T/A Concept Resourcing,150044,"6,423.46", Census Information Management Services, Large , Programme Expenditure 
UK Statistics Authority,Office for National Statistics,20/08/2019,Surveys,Business Change Support,HMRC,150047,"4,524.00", Statistical Services, Large , Programme Expenditure 
UK Statistics Authority,Office for National Statistics,20/08/2019,Surveys,N A Coordination,HMRC,150047,984, Statistical Services, Large , Programme Expenditure 
UK Statistics Authority,Office for National Statistics,20/08/2019,Surveys,Business Indicators And B O P,HMRC,150047,"2,832.00", Statistical Services, Large , Programme Expenditure 
UK Statistics Authority,Office for National Statistics,20/08/2019,Surveys,Sustainability And Inequalities,HMRC,150047,"1,956.00", Statistical Services, Large , Programme Expenditure 
UK Statistics Authority,Office for National Statistics,20/08/2019,Surveys,Productivity Innovation Engagement And Research,HMRC,150047,"3,756.00", Statistical Services, Large , Programme Expenditure 
UK Statistics Authority,Office for National Statistics,20/08/2019,Surveys,Strategy And Engagement,HMRC,150047,"4,524.00", Statistical Services, Large , Programme Expenditure 
UK Statistics Authority,Office for National Statistics,20/08/2019,Surveys,Learning And Capability,HMRC,150047,984, Statistical Services, Large , Programme Expenditure 
UK Statistics Authority,Office for National Statistics,20/08/2019,Surveys,Census & Soc Methodology Dd,HMRC,150047,"2,832.00", Census Statistical Services, Large , Programme Expenditure 
UK Statistics Authority,Office for National Statistics,20/08/2019,Surveys,Public Sector And Households,HMRC,150047,984, Statistical Services, Large , Programme Expenditure 
UK Statistics Authority,Office for National Statistics,20/08/2019,Surveys,Data As A Service,HMRC,150047,984, Statistical Services, Large , Programme Expenditure 
UK Statistics Authority,Office for National Statistics,20/08/2019,Surveys,Prices Division,HMRC,150047,984, Statistical Services, Large , Programme Expenditure 
UK Statistics Authority,Office for National Statistics,20/08/2019,Surveys,Business Outputs And Developments,HMRC,150047,"5,160.00", Statistical Services, Large , Programme Expenditure 
UK Statistics Authority,Office for National Statistics,20/08/2019,Surveys,Labour Market,HMRC,150047,984, Statistical Services, Large , Programme Expenditure 
UK Statistics Authority,Office for National Statistics,20/08/2019,Travel And Subsistence,Business Architecture,Parity Resources Limited,150056,80.64, Information Management Services , Large , Programme Expenditure 
UK Statistics Authority,Office for National Statistics,20/08/2019,EXP - Purchase Of Goods/Services - Contractors,Testing,Parity Resources Limited,150056,"14,097.60", Information Management Services , Large , Programme Expenditure 
UK Statistics Authority,Office for National Statistics,20/08/2019,EXP - Purchase Of Goods/Services - Contractors,Census Ccs Data Collection,Parity Resources Limited,150056,"3,043.80", Census Information Management Services, Large , Programme Expenditure 
UK Statistics Authority,Office for National Statistics,20/08/2019,EXP - Purchase Of Goods/Services - Contractors,Programme Other,Parity Resources Limited,150056,"6,343.92", Information Management Services , Large , Programme Expenditure 
UK Statistics Authority,Office for National Statistics,20/08/2019,EXP - Purchase Of Goods/Services - Contractors,Programme Delivery,Parity Resources Limited,150056,"14,097.60", Information Management Services , Large , Programme Expenditure 
UK Statistics Authority,Office for National Statistics,20/08/2019,EXP - Purchase Of Goods/Services - Contractors,Digital Publishing,Parity Resources Limited,150056,"10,252.80", Information Management Services , Large , Programme Expenditure 
UK Statistics Authority,Office for National Statistics,20/08/2019,EXP - Short-Term Contract & Agency Staff - Full Cost,Business Indicators And B O P,Parity Resources Limited,150056,"3,933.84", Information Management Services , Large , Programme Expenditure 
UK Statistics Authority,Office for National Statistics,20/08/2019,EXP - Purchase Of Goods/Services - Contractors,Business Indicators And B O P,Parity Resources Limited,150056,"8,971.20", Information Management Services , Large , Programme Expenditure 
UK Statistics Authority,Office for National Statistics,20/08/2019,EXP - Short-Term Contract & Agency Staff - Full Cost,Strategy And Engagement,Parity Resources Limited,150056,983.46, Information Management Services , Large , Programme Expenditure 
UK Statistics Authority,Office for National Statistics,20/08/2019,EXP - Short-Term Contract & Agency Staff - Full Cost,Ask Business Services,Parity Resources Limited,150056,490.19, Information Management Services , Large , Programme Expenditure 
UK Statistics Authority,Office for National Statistics,20/08/2019,EXP - Short-Term Contract & Agency Staff - Full Cost,Recruitment,Parity Resources Limited,150056,"1,712.92", Information Management Services , Large , Programme Expenditure 
UK Statistics Authority,Office for National Statistics,20/08/2019,EXP - Short-Term Contract & Agency Staff - Full Cost,Health Analysis And Life Events,Parity Resources Limited,150056,"4,169.66", Information Management Services , Large , Programme Expenditure 
UK Statistics Authority,Office for National Statistics,20/08/2019,EXP - Purchase Of Goods/Services - IT Contractual Services,Strategy And Architecture,Parity Resources Limited,150056,"6,840.00", Information Management Services , Large , Programme Expenditure 
UK Statistics Authority,Office for National Statistics,20/08/2019,EXP - Purchase Of Goods/Services - Contractors,It Applications,Parity Resources Limited,150056,"9,022.56", Information Management Services , Large , Programme Expenditure 
UK Statistics Authority,Office for National Statistics,20/08/2019,EXP - Short-Term Contract & Agency Staff - Full Cost,Office Of Chief Data And Information,Parity Resources Limited,150056,"1,544.68", Information Management Services , Large , Programme Expenditure 
UK Statistics Authority,Office for National Statistics,20/08/2019,EXP - Purchase Of Goods/Services - IT Contractual Services,Digital Delivery,Parity Resources Limited,150056,"11,602.94", Information Management Services , Large , Programme Expenditure 
UK Statistics Authority,Office for National Statistics,20/08/2019,EXP - Short-Term Contract & Agency Staff - Full Cost,Public Sector And Households,Parity Resources Limited,150056,"4,256.25", Information Management Services , Large , Programme Expenditure 
UK Statistics Authority,Office for National Statistics,20/08/2019,EXP - Short-Term Contract & Agency Staff - Full Cost,Interviewer Management Tu,Parity Resources Limited,150056,704.7, Information Management Services , Large , Programme Expenditure 
UK Statistics Authority,Office for National Statistics,20/08/2019,Other Goods And Services,Interviewer Management Tu,Parity Resources Limited,150056,"1,302.48", Information Management Services , Large , Programme Expenditure 
UK Statistics Authority,Office for National Statistics,20/08/2019,EXP - Purchase Of Goods/Services - Contractors,Interviewer Support,Parity Resources Limited,150056,"3,123.90", Information Management Services , Large , Programme Expenditure 
UK Statistics Authority,Office for National Statistics,20/08/2019,EXP - Purchase Of Goods/Services - Contractors,Social Survey Transformation Titchfield,Parity Resources Limited,150056,"13,399.56", Information Management Services , Large , Programme Expenditure 
UK Statistics Authority,Office for National Statistics,21/08/2019,"Ict Outsourcing, Maintenance And Support",It Operations,CTS (Cloud Technology Solutions Ltd),150073,"29,949.53", Google Cloud Services, Large , Programme Expenditure 
UK Statistics Authority,Office for National Statistics,21/08/2019,Special Payments,Data Collection Service,HH Associates Ltd,150075,"45,087.05", Census Print and Post Out Contract, SME , Programme Expenditure 
UK Statistics Authority,Office for National Statistics,21/08/2019,"Ict Outsourcing, Maintenance And Support",Digital Delivery,Worth Internet Systems,150077,"89,822.35", Census Information Management Services, SME , Programme Expenditure 
UK Statistics Authority,Office for National Statistics,21/08/2019,EXP - Purchase Of Goods/Services - Contractors,Business Indicators And B O P,Mango Solutions,150080,"60,450.00", Information Management Services , SME , Programme Expenditure 
UK Statistics Authority,Office for National Statistics,21/08/2019,EXP - Purchase Of Goods/Services - Contractors,Business Indicators And B O P,Mango Solutions,150080,"17,136.00", Information Management Services , SME , Programme Expenditure 
UK Statistics Authority,Office for National Statistics,21/08/2019,EXP - Purchase Of Goods/Services - IT Contractual Services,Tech Delivery Data As A Platform,Mango Solutions,150080,"39,780.00", Information Management Services , SME , Programme Expenditure 
UK Statistics Authority,Office for National Statistics,21/08/2019,"Ict Outsourcing, Maintenance And Support",Data Science Campus,Mango Solutions,150080,"7,020.00", Information Management Services , SME , Programme Expenditure 
UK Statistics Authority,Office for National Statistics,21/08/2019,EXP - Purchase Of Goods/Services - IT Contractual Services,Dst Reapportioning,E Synergy Solutions,150081,"121,560.00", Information Management Services , SME , Programme Expenditure 
UK Statistics Authority,Office for National Statistics,21/08/2019,EXP - Purchase Of Goods/Services - IT Contractual Services,Cdio Ungp,E Synergy Solutions,150081,"39,330.00", Information Management Services , SME , Programme Expenditure 
UK Statistics Authority,Office for National Statistics,21/08/2019,EXP - Purchase Of Goods/Services - IT Contractual Services,Tech Delivery Legacy Sp,E Synergy Solutions,150081,"93,822.00", Information Management Services , SME , Programme Expenditure 
UK Statistics Authority,Office for National Statistics,21/08/2019,EXP - Purchase Of Goods/Services - IT Contractual Services,It Operations,E Synergy Solutions,150081,"217,932.00", Information Management Services , SME , Programme Expenditure 
UK Statistics Authority,Office for National Statistics,21/08/2019,EXP - Purchase Of Goods/Services - IT Contractual Services,Dst Reapportioning,Empiric Solutions Limited,150082,"53,820.00", Information Management Services, Large , Programme Expenditure 
UK Statistics Authority,Office for National Statistics,21/08/2019,EXP - Purchase Of Goods/Services - IT Contractual Services,Strategy And Architecture,Empiric Solutions Limited,150082,780, Information Management Services, Large , Programme Expenditure 
UK Statistics Authority,Office for National Statistics,21/08/2019,"Ict Outsourcing, Maintenance And Support",It Operations,Equiniti Limited,150087,"47,212.80", Information Management Services , Large , Programme Expenditure 
UK Statistics Authority,Office for National Statistics,21/08/2019,EXP - Short-Term Contract & Agency Staff - Full Cost,Interview Management Ips,Nisra,150091,"102,000.00", Statistical Services, Large , Programme Expenditure 
UK Statistics Authority,Office for National Statistics,22/08/2019,EXP - Purchase Of Goods/Services - IT Contractual Services,Digital Publishing,Methods Business & Digital Technology Ltd,150411,"49,500.00", Information Management Services , Large , Programme Expenditure 
UK Statistics Authority,Office for National Statistics,22/08/2019,EXP - Purchase Of Goods/Services - IT Contractual Services,Dst Reapportioning,Methods Business & Digital Technology Ltd,150411,-900, Information Management Services , Large , Programme Expenditure 
UK Statistics Authority,Office for National Statistics,22/08/2019,Training & Development,Office Of Chief Data And Information,Armakuni Ltd,150424,"57,171.00", Training , SME , Programme Expenditure 
UK Statistics Authority,Office for National Statistics,23/08/2019,Surveys,Social Surveys Division,Natcen Social Research,150427,"1,109,889.08", Sataistical Services, Large , Programme Expenditure 
UK Statistics Authority,Office for National Statistics,27/08/2019,EXP - Purchase Of Goods/Services - Contractors,Business Indicators And B O P,LA International,150657,"1,794.16", Information Management Services , SME , Programme Expenditure 
UK Statistics Authority,Office for National Statistics,27/08/2019,EXP - Purchase Of Goods/Services - Contractors,Security And Information Management Saim,LA International,150657,313.15, Information Management Services , SME , Programme Expenditure 
UK Statistics Authority,Office for National Statistics,27/08/2019,EXP - Purchase Of Goods/Services - Contractors,Security Advisory,LA International,150657,"2,819.38", Information Management Services , SME , Programme Expenditure 
UK Statistics Authority,Office for National Statistics,27/08/2019,EXP - Purchase Of Goods/Services - Contractors,Data Architecture,LA International,150657,"3,844.62", Information Management Services , SME , Programme Expenditure 
UK Statistics Authority,Office for National Statistics,27/08/2019,EXP - Purchase Of Goods/Services - Contractors,Data Architecture,LA International,150657,"14,994.00", Information Management Services , SME , Programme Expenditure 
UK Statistics Authority,Office for National Statistics,27/08/2019,EXP - Purchase Of Goods/Services - Contractors,Tech Delivery Srs,LA International,150657,"7,176.60", Information Management Services , SME , Programme Expenditure 
UK Statistics Authority,Office for National Statistics,27/08/2019,EXP - Purchase Of Goods/Services - Contractors,It Applications,LA International,150657,"2,883.48", Information Management Services , SME , Programme Expenditure 
UK Statistics Authority,Office for National Statistics,27/08/2019,EXP - Purchase Of Goods/Services - Contractors,Data As A Service,LA International,150657,"3,075.69", Information Management Services , SME , Programme Expenditure 
UK Statistics Authority,Office for National Statistics,27/08/2019,EXP - Short-Term Contract & Agency Staff - Full Cost,Census White Paper,Parity Resources Limited,150660,"2,935.18", Census Information Management Services, Large , Programme Expenditure 
UK Statistics Authority,Office for National Statistics,27/08/2019,EXP - Short-Term Contract & Agency Staff - Full Cost,2021 Census Statistical Design,Parity Resources Limited,150660,0.01, Census Information Management Services, Large , Programme Expenditure 
UK Statistics Authority,Office for National Statistics,27/08/2019,EXP - Purchase Of Goods/Services - Contractors,Business Indicators And B O P,Parity Resources Limited,150660,"2,400.96", Information Management Services , Large , Programme Expenditure 
UK Statistics Authority,Office for National Statistics,27/08/2019,EXP - Purchase Of Goods/Services - Contractors,Business Indicators And B O P,Parity Resources Limited,150660,"1,010.04", Information Management Services , Large , Programme Expenditure 
UK Statistics Authority,Office for National Statistics,27/08/2019,EXP - Short-Term Contract & Agency Staff - Full Cost,Economic Statistics Architecture Business Change,Parity Resources Limited,150660,"1,643.36", Information Management Services , Large , Programme Expenditure 
UK Statistics Authority,Office for National Statistics,27/08/2019,EXP - Purchase Of Goods/Services - Contractors,Security Advisory,Parity Resources Limited,150660,"14,610.24", Information Management Services , Large , Programme Expenditure 
UK Statistics Authority,Office for National Statistics,27/08/2019,EXP - Purchase Of Goods/Services - Contractors,Security Advisory,Parity Resources Limited,150660,"7,689.60", Information Management Services , Large , Programme Expenditure 
UK Statistics Authority,Office for National Statistics,27/08/2019,EXP - Purchase Of Goods And Services Consultants,Consultancy Management,Bloom Procurement Services Ltd,150663,"1,073,823.60", Census Information Magement Service, Large , Programme Expenditure 
UK Statistics Authority,Office for National Statistics,28/08/2019,Travel And Subsistence,Cwt Trainline,Corporate Travel Management ,150912,"45,751.99", Travel and Accommodation Booking Service , SME , Programme Expenditure 
UK Statistics Authority,Office for National Statistics,28/08/2019,EXP - Purchase Of Goods/Services - IT Contractual Services,Dst Reapportioning,QA Ltd,150916,"249,588.00", Information Management Services, Large , Programme Expenditure 
UK Statistics Authority,Office for National Statistics,16/08/2019,Electricity,Property Newport,EDF Energy,30001524,"27,691.48", Electricity Charges Newport, Large , Programme Expenditure 
UK Statistics Authority,Office for National Statistics,19/08/2019,Electricity,Property Titchfield,EDF Energy,30001527,"28,668.44", Electricity Charges Titchfield, Large , Programme Expenditure 
